[Event "Superbet Blitz Poland 2022"]
[Site "Warsaw"]
[Date "2022.05.22"]
[Round "2.5"]
[White "Gavrilescu, David"]
[Black "Shevchenko, Kirill"]
[Result "1/2-1/2"]
[ECO "B31"]
[WhiteElo "2518"]
[BlackElo "2644"]
[Annotator "TA"]
[PlyCount "128"]
[EventDate "2022.05.22"]
[EventType "tourn"]
[EventCountry "POL"]
[SourceTitle "playchess.com"]
[Source "ChessBase"]
[SourceQuality "1"]
[TimeControl "300+2"]

{[%evp 11,128,18,40,16,20,27,25,8,15,10,12,8,16,0,61,52,54,35,29,27,31,17,27,0,12,5,10,6,66,16,75,26,27,41,125,128,137,134,133,119,117,122,129,133,159,164,136,142,205,205,208,202,201,159,169,155,188,188,185,162,193,177,199,166,229,218,251,264,239,198,281,200,204,190,203,170,660,728,715,649,718,718,696,674,607,603,1008,891,1536,1333,1446,1365,1115,556,507,11,19,22,280,267,218,8,8,8,8,0,8,0,0,0,0,0,0,0,0,0,0,0,0]} 1. e4 {[%emt 0:00:02]} c5 {[%emt 0:00:01]} 2. Nf3 {[%emt 0:00:01]} Nc6 {[%emt 0:00:01]} 3. Bb5 {[%emt 0:00:02]} g6 {[%emt 0:00:01]} 4. Bxc6 {[%emt 0:00:02]} dxc6 {[%emt 0:00:05]} 5. d3 {[%emt 0:00:01]} Bg7 {[%emt 0:00:01]} 6. h3 {[%emt 0:00:01]} e5 {[%emt 0:00:08]} 7. a4 {[%emt 0:00:12] B31: Sicilian: 2...Nc6 3 Bb5 g6.} a5 {[%emt 0:00:12]} 8. Be3 {[%emt 0:00:07]} b6 {[%emt 0:00:01]} 9. Qd2 {[%emt 0:00:36] White has an edge.} h6 {[%emt 0:00:11]} 10. Na3 {[%emt 0:00:02] [#]} Qc7 $146 {[%emt 0:00:10]} ({Predecessor:} 10... Be6 11. Qc3 Qc7 12. Bf4 f6 13. Bg3 Ne7 14. Nc4 Nc8 15. Nfd2 Nd6 16. Ne3 h5 {1-0 (40) Kozlitin,R (2342)-Yeritsyan,H (2076) Poti 2016}) 11. Nc4 {[%emt 0:00:10]} Be6 {[%emt 0:00:49]} 12. Qc3 {[%emt 0:00:03][%cal Rc4e5]} Bxc4 {[%emt 0:00:48]} (12... Ne7 $11) 13. Qxc4 $14 {[%emt 0:00:02]} Nf6 {[%emt 0:00:08]} 14. O-O {[%emt 0:00:04]} O-O {[%emt 0:00:03]} 15. c3 {[%emt 0:00:41]} Rfd8 {[%emt 0:01:01]} 16. Rfd1 {[%emt 0:00:17]} Nh5 {[%emt 0:00:17]} 17. d4 {[%emt 0:00:56]} exd4 {[%emt 0:00:25]} 18. cxd4 {[%emt 0:00:01]} cxd4 {[%emt 0:00:01]} 19. Nxd4 {[%emt 0:00:02][%cal Bf3d4,Bd4c6,Bc6e7,Be7d5][%mdl 32]} Rac8 {[%emt 0:00:05] [#]} (19... c5 $11) 20. Rac1 {[%emt 0:00:03]} (20. Nxc6 $1 $14 Rxd1+ 21. Rxd1) 20... Nf4 {[%emt 0:00:45]} (20... Bxd4 $11 {remains equal.} 21. Rxd4 Rxd4 22. Qxd4 (22. Bxd4 c5 $11) 22... c5) 21. Nxc6 $16 {[%emt 0:00:08]} Rxd1+ {[%emt 0:00:19]} 22. Rxd1 {[%emt 0:00:01] Strongly threatening Bxf4.} Ne6 {[%emt 0:00:08] [#]} (22... Nxh3+ $2 23. gxh3 Kh7 24. Rc1 Bxb2 25. Rc2 $18) (22... Kh7 $14) 23. Ne7+ $1 {[%emt 0:01:11][%mdl 512]} Kh7 {[%emt 0:00:01]} 24. Qxc7 {[%emt 0:00:01] White is much more active.} Rxc7 {[%emt 0:00:00]} 25. Nd5 $36 {[%emt 0:00:02][%mdl 2048] White is in control.} Rc2 {[%emt 0:00:05]} 26. Rd2 {[%emt 0:00:06]} Rc1+ {[%emt 0:00:02]} 27. Kh2 {[%emt 0:00:02]} Rc4 {[%emt 0:00:02]} 28. b3 {[%emt 0:00:01]} (28. Bxb6 $6 Rxa4 29. b3 (29. f3 Ra2 $14) 29... Ra3 $16) 28... Rxe4 {[%emt 0:00:01]} 29. Bxb6 {[%emt 0:00:02]} Be5+ {[%emt 0:00:02]} (29... Nd4 $16) 30. g3 $18 {[%emt 0:00:01]} Nd4 {[%emt 0:00:03]} 31. Rd3 {[%emt 0:00:07] Against Nf3+. aiming for Nc3.} ({Wrong is} 31. Bxa5 $2 Nf3+ 32. Kg2 Nxd2 33. Bxd2 Rd4 34. Bxh6 Kxh6 $19) 31... Nc6 {[%emt 0:00:03]} 32. Re3 {[%emt 0:00:06]} Rxe3 {[%emt 0:00:03]} 33. Nxe3 $16 {[%emt 0:00:01][%mdl 4096] Endgame KBN-KBN} ({Resist} 33. fxe3 Kg7 34. Kg2 f5 $16) 33... Kg7 {[%emt 0:00:02]} 34. Nc4 {[%emt 0:00:06]} Bc3 {[%emt 0:00:00]} 35. Kg2 {[%emt 0:00:01]} Kf6 {[%emt 0:00:01]} 36. Kf3 {[%emt 0:00:02]} Ke6 {[%emt 0:00:00]} 37. Ke4 {[%emt 0:00:01]} Be1 {[%emt 0:00:03]} (37... h5 $142 38. g4 hxg4) 38. g4 {[%emt 0:00:14]} f5+ {[%emt 0:00:01]} 39. gxf5+ {[%emt 0:00:05]} gxf5+ {[%emt 0:00:01]} 40. Kd3 {[%emt 0:00:02]} h5 {[%emt 0:00:06]} (40... Bb4 {was called for.} 41. Ke3 Kf6) 41. f4 {[%emt 0:00:06]} Bb4 {[%emt 0:00:02] [#]} 42. Ne3 $1 {[%emt 0:00:01] Kc4 is the strong threat.} Bd6 {[%emt 0:00:04] [#]} 43. Ng2 $1 {[%emt 0:00:05] Black must now prevent Kc4.} Nb4+ $2 {[%emt 0:00:01]} (43... Kd5 44. Nh4 Ke6) 44. Kc4 $18 {[%emt 0:00:03]} Nc6 {[%emt 0:00:01]} 45. Kb5 {[%emt 0:00:02][%csl LRa5,LRc6]} Kd7 {[%emt 0:00:04]} 46. Bxa5 {[%emt 0:00:02]} Nd4+ {[%emt 0:00:02]} 47. Kc4 {[%emt 0:00:01]} Ne2 {[%emt 0:00:02]} 48. Bd2 {[%emt 0:00:03]} Ng1 {[%emt 0:00:02]} 49. h4 {[%emt 0:00:02]} Nf3 {[%emt 0:00:01]} 50. Bc3 {[%emt 0:00:03]} Be7 {[%emt 0:00:01]} 51. b4 {[%emt 0:00:10]} Nxh4 {[%emt 0:00:02]} 52. Ne3 {[%emt 0:00:01]} (52. Nxh4 $142 Bxh4 53. Kd3) 52... Bd6 {[%emt 0:00:02]} 53. Be1 $2 {[%emt 0:00:04]} ({White should try} 53. a5 $18) 53... Nf3 $1 $11 {[%emt 0:00:03]} 54. Bf2 {[%emt 0:00:05]} ({Don't play} 54. Nxf5 Nxe1 55. a5 Bc7 $17) 54... Bxf4 $2 {[%emt 0:00:04][%mdl 8192]} (54... h4 $1 $11 {and Black is okay.}) 55. Nxf5 $18 {[%emt 0:00:01] And now a5 would win.} Ne5+ {[%emt 0:00:02]} 56. Kd5 $2 {[%emt 0:00:02]} ({Better is} 56. Kd4 $18) 56... Nd3 $11 {[%emt 0:00:00][%csl LRb4,LRf2] The position is equal.} 57. Bc5 {[%emt 0:00:01]} Nxc5 {[%emt 0:00:03]} 58. Kxc5 {[%emt 0:00:01] KB-KN} Bg5 {[%emt 0:00:02]} 59. Kb6 {[%emt 0:00:03]} h4 {[%emt 0:00:03]} 60. Nxh4 {[%emt 0:00:02]} Bxh4 {[%emt 0:00:00]} 61. Kb7 {[%emt 0:00:01] White wants to mate with a5.} Be1 {[%emt 0:00:02]} 62. b5 {[%emt 0:00:01]} Ba5 {[%emt 0:00:01]} 63. b6 {[%emt 0:00:01]} Bxb6 {[%emt 0:00:01]} 64. Kxb6 {[%emt 0:00:24] Threatening mate with Kb7.} Kc8 {Weighted Error Value: White=0.44/Black=0.42} 1/2-1/2

[Event "Superbet Blitz Poland 2022"]
[Site "Warsaw"]
[Date "2022.05.22"]
[Round "3.2"]
[White "Anand, Viswanathan"]
[Black "Gavrilescu, David"]
[Result "0-1"]
[ECO "C11"]
[WhiteElo "2751"]
[BlackElo "2518"]
[Annotator "TA"]
[PlyCount "52"]
[EventDate "2022.05.22"]
[EventType "tourn"]
[EventCountry "POL"]
[SourceTitle "playchess.com"]
[Source "ChessBase"]
[SourceQuality "1"]
[TimeControl "300+2"]

{[%evp 20,52,0,0,22,14,18,12,28,9,12,4,37,0,37,36,31,33,29,26,26,0,14,-13,-15,-22,-27,-63,-56,-79,-66,-141,-133,-241,-240]} 1. e4 {[%emt 0:00:01]} e6 {[%emt 0:00:01]} 2. d4 {[%emt 0:00:02]} d5 {[%emt 0:00:02]} 3. Nc3 {[%emt 0:00:02]} Nf6 {[%emt 0:00:01]} 4. e5 {[%emt 0:00:02]} Nfd7 {[%emt 0:00:01]} 5. f4 {[%emt 0:00:01]} c5 {[%emt 0:00:02]} 6. Nf3 {[%emt 0:00:02]} Nc6 {[%emt 0:00:01]} 7. Be3 {[%emt 0:00:01]} cxd4 {[%emt 0:00:01]} 8. Nxd4 {[%emt 0:00:02]} Qb6 {[%emt 0:00:02]} 9. Qd2 {[%emt 0:00:04]} Qxb2 {[%emt 0:00:02]} 10. Rb1 {[%emt 0:00:02][%cal Ba1b1,Bb1b3,Bb3b7,Bb7c7][%mdl 32]} Qa3 {[%emt 0:00:02]} 11. Bb5 {[%emt 0:00:03]} Nxd4 {[%emt 0:00:01] C11: French: Classical System: 4 e5 and 4 Bg5 dxe4.} ({Don't play} 11... Bb4 12. Rb3 Qa5 13. O-O $14 (13. Nxc6 bxc6 14. Bxc6 Rb8 $15)) 12. Bxd4 {[%emt 0:00:01][%cal Of4f5] Threatens to win with f5!} ({But not} 12. Qxd4 a6 13. Bxd7+ Bxd7 14. Rxb7 Rc8 $17) 12... a6 {[%emt 0:00:02]} 13. Bxd7+ {[%emt 0:00:02]} Bxd7 {[%emt 0:00:01] The position is equal.} 14. Rb3 {[%emt 0:00:04]} Qe7 {[%emt 0:00:02]} 15. Rxb7 {[%emt 0:00:02]} Qh4+ {[%emt 0:00:02]} 16. g3 {[%emt 0:00:15]} Qd8 {[%emt 0:00:08]} 17. Bb6 {[%emt 0:00:19]} Qc8 {[%emt 0:00:02]} 18. Rc7 {[%emt 0:00:01]} Qd8 {[%emt 0:00:01][%cal Of8c5] [#]} 19. Qd4 $146 {[%emt 0:00:40][%cal Of4f5] Against Bc5} ({Predecessor:} 19. Qe3 Bb4 20. a3 Bxa3 21. f5 Rc8 22. Ra7 Qe7 23. O-O Bc5 24. Bxc5 Qxc5 25. Qxc5 Rxc5 {1-0 (38) Ivic,V (2571)-Bluebaum,M (2674) Reykjavik 2021}) 19... Ba3 {[%emt 0:00:05][%cal Bf8a3,Ba3b4,Bb4a5][%mdl 32]} 20. O-O {[%emt 0:00:11][%cal Of4f5] Black must now prevent f5!} Rc8 {[%emt 0:00:15]} 21. Rxc8 {[%emt 0:01:05]} (21. Ra7 {keeps more tension.} Rc4 22. Bxd8 Rxd4 23. Bb6) 21... Qxc8 {[%emt 0:00:02]} 22. Rb1 {[%emt 0:00:08]} O-O {[%emt 0:00:39]} 23. Qe3 {[%emt 0:00:11]} Qc4 {[%emt 0:00:27]} 24. Rb3 {[%emt 0:00:33]} Bb4 {[%emt 0:00:42] A strong pair of Bishops.} 25. Qd4 {[%emt 0:00:19] [#]} ({Better is} 25. Rxb4 $15 Qxb4 26. Bc5) 25... Ba5 $1 $17 {[%emt 0:00:47] And now ...Bxb6 would win.} 26. Ba7 {[%emt 0:00:39]} (26. Qxc4 $17 dxc4 27. Bxa5 cxb3 28. cxb3) 26... Rc8 {[%emt 0:00:07] Weighted Error Value: White=0.21 (precise) /Black=0.05 (flawless)} 0-1

[Event "Superbet Blitz Poland 2022"]
[Site "Warsaw"]
[Date "2022.05.22"]
[Round "3.3"]
[White "So, Wesley"]
[Black "Korobov, Anton"]
[Result "1-0"]
[ECO "E99"]
[WhiteElo "2766"]
[BlackElo "2671"]
[Annotator "TA"]
[PlyCount "66"]
[EventDate "2022.05.22"]
[EventType "tourn"]
[EventCountry "POL"]
[SourceTitle "playchess.com"]
[Source "ChessBase"]
[SourceQuality "1"]
[TimeControl "300+2"]

{[%evp 24,66,93,59,91,21,15,15,15,14,45,15,17,15,70,19,90,67,88,52,191,110,99,41,37,29,33,8,41,33,103,-4,-16,-40,-33,-35,-33,-87,0,-133,-112,-418,-10,-6,248]} 1. c4 {[%emt 0:00:01]} Nf6 {[%emt 0:00:02]} 2. Nc3 {[%emt 0:00:01]} g6 {[%emt 0:00:01]} 3. e4 {[%emt 0:00:01]} d6 {[%emt 0:00:01]} 4. d4 {[%emt 0:00:01]} Bg7 {[%emt 0:00:01]} 5. Nf3 {[%emt 0:00:01]} O-O {[%emt 0:00:02]} 6. Be2 {[%emt 0:00:01]} e5 {[%emt 0:00:01]} 7. O-O {[%emt 0:00:01]} Nc6 {[%emt 0:00:01]} 8. d5 {[%emt 0:00:01]} Ne7 {[%emt 0:00:01]} 9. Ne1 {[%emt 0:00:01]} Nd7 {[%emt 0:00:03]} 10. f3 {[%emt 0:00:02]} f5 {[%emt 0:00:01]} 11. Be3 {[%emt 0:00:01]} f4 {[%emt 0:00:06]} 12. Bf2 {[%emt 0:00:01]} h5 {[%emt 0:00:06]} 13. Rc1 {[%emt 0:00:02]} g5 {[%emt 0:00:08] E99: King's Indian: Classical Main Line: 9 Ne1 Nd7 10 f3 f5.} 14. c5 {[%emt 0:00:01]} (14. Nd3 $16) 14... Nxc5 $11 {[%emt 0:00:15]} 15. b4 {[%emt 0:00:07]} Na6 {[%emt 0:00:02]} 16. Nb5 {[%emt 0:00:02][%mdl 1024] White has compensation.} Ng6 {[%emt 0:00:10]} 17. a4 $5 {[%emt 0:00:27][%mdl 4] A promising side line.} Bd7 {[%emt 0:00:32]} 18. Nd3 {[%emt 0:00:02] [#]} Rf6 $146 {[%emt 0:00:13]} (18... b6 $11) ({Predecessor:} 18... Rf7 19. Rc4 Bf8 20. Kh1 Rg7 21. Rg1 Nh8 22. g3 fxg3 23. Rxg3 Nf7 24. Qc1 g4 25. fxg4 hxg4 26. Nxc7 Nxc7 27. Rxc7 {1-0 (50) So,W (2812)-Grischuk,A (2761) Paris 2017}) 19. Rc3 {[%emt 0:00:27] White is more active.} (19. Nxa7 $14 Rf7 20. Nb5) 19... c6 {[%emt 0:01:30]} (19... Nh4 $11 {remains equal.}) 20. dxc6 $16 {[%emt 0:00:10]} bxc6 {[%emt 0:00:01]} 21. Nxa7 {[%emt 0:00:02]} d5 {[%emt 0:00:13]} (21... c5 $1 $14) 22. b5 {[%emt 0:00:30]} (22. Qb3 $1 $18) 22... cxb5 {[%emt 0:00:02]} 23. exd5 {[%emt 0:00:28]} (23. axb5 $16 d4 24. Nc6 Bxc6 25. Rxc6 Rxc6 26. Qb3+ (26. bxc6 Kh7 $16) 26... Kh7 27. bxc6) 23... bxa4 $14 {[%emt 0:00:08]} 24. Nc6 {[%emt 0:00:01]} Bxc6 {[%emt 0:00:32]} 25. Rxc6 {[%emt 0:00:27]} (25. dxc6 $5 {[%cal Rd1a4]} Nc7 26. Nc5 Rxc6 27. Qxd8+ Rxd8 28. Nxa4 $11) 25... a3 {[%emt 0:00:23]} 26. Qb3 {[%emt 0:00:11] Black must now prevent d6+.} Nb8 {[%emt 0:00:28]} (26... Kh7 $14) 27. d6+ {[%emt 0:00:41]} (27. Rxf6 $1 $16 Bxf6 28. Nc5) 27... Kh7 $11 {[%emt 0:00:17]} 28. Rc7 {[%emt 0:00:01]} Rxd6 {[%emt 0:00:14]} 29. Qb7 {[%emt 0:00:09][%csl LRa8,LRg7]} (29. Qf7 $2 Nd7 30. Rc2 e4 $19) 29... Nd7 {[%emt 0:00:03] And now ...a2 would win.} 30. Nc5 {[%emt 0:00:01]} (30. Bc5 $15 Rb8 31. Qa7) 30... a2 {[%emt 0:00:08]} 31. Nxd7 {[%emt 0:00:30]} ({Avoid the trap} 31. Rxd7 $2 Rxd7 32. Qxd7 Qxd7 33. Nxd7 a1=Q $19) (31. Ra1 $2 Rb8 32. Ne4 (32. Rxd7 $2 Rxd7 33. Qe4 Rd2 $19) 32... Rxb7 $19) (31. Ne4 $1 $11 {was the only way to keep the balance.} Rb8 32. Qa7) 31... a1=Q $17 {[%emt 0:00:02][%cal Oe5e4] ...e4! is the strong threat.} 32. Nb6 $2 {[%emt 0:00:00][%mdl 8192] [#]} (32. Nc5 $17 {nothing else works.} e4 33. Nxe4) 32... Qxc7 $2 {[%emt 0:00:14]} 33. Qxc7 $11 {[%emt 0:00:01] The board is on fire.} Qa3 $2 {[%emt 0:00:07][%mdl 8192] Weighted Error Value: White=0.64/Black=0.67} ({But not} 33... Rxb6 34. Qxb6 Qa5 35. Qe6 $11) (33... Rd2 $11 {and Black has nothing to worry.} 34. Nxa8 (34. Rxa1 Rxa1+ 35. Bf1 Rdd1 $17) 34... Qxa8) 1-0

[Event "Superbet Blitz Poland 2022"]
[Site "Warsaw"]
[Date "2022.05.22"]
[Round "3.4"]
[White "Caruana, Fabiano"]
[Black "Duda, Jan-Krzysztof"]
[Result "1/2-1/2"]
[ECO "C67"]
[WhiteElo "2786"]
[BlackElo "2750"]
[Annotator "TA"]
[PlyCount "124"]
[EventDate "2022.05.22"]
[EventType "tourn"]
[EventCountry "POL"]
[SourceTitle "playchess.com"]
[Source "ChessBase"]
[SourceQuality "1"]
[TimeControl "300+2"]

{[%evp 20,124,18,6,22,2,4,11,19,-13,-14,-9,-11,-27,34,0,0,0,0,0,35,0,0,0,0,0,0,0,0,0,0,0,0,0,0,-3,-6,-11,-10,-10,-10,-10,-14,-17,-23,-18,-17,-17,0,-14,0,-6,0,0,0,-16,0,0,0,0,0,0,0,0,0,0,0,0,0,0,0,0,0,0,0,0,0,0,0,0,0,0,0,-168,0,0,0,0,0,0,0,0,0,0,0,0,0,0,0,0,0,0,0,0,0,0,0]} 1. e4 {[%emt 0:00:01]} e5 {[%emt 0:00:01]} 2. Nf3 {[%emt 0:00:01]} Nc6 {[%emt 0:00:01]} 3. Bb5 {[%emt 0:00:02]} Nf6 {[%emt 0:00:01]} 4. O-O {[%emt 0:00:03]} Nxe4 {[%emt 0:00:01]} 5. d4 {[%emt 0:00:01]} Nd6 {[%emt 0:00:02]} 6. Bxc6 {[%emt 0:00:01]} dxc6 {[%emt 0:00:01]} 7. dxe5 {[%emt 0:00:01]} Nf5 {[%emt 0:00:01]} 8. Qxd8+ {[%emt 0:00:02]} Kxd8 {[%emt 0:00:01]} 9. h3 {[%emt 0:00:01]} Ke8 {[%emt 0:00:01]} 10. Nc3 {[%emt 0:00:02]} a5 {[%emt 0:00:01]} 11. Bf4 {[%emt 0:00:12]} Bb4 {[%emt 0:00:03] C67: Ruy Lopez: Berlin Defence: 4 0-0 Nxe4.} 12. Ne4 {[%emt 0:00:03]} Be6 {[%emt 0:00:01]} 13. c3 {[%emt 0:00:02]} Be7 {[%emt 0:00:06] [#]} 14. g4 $146 {[%emt 0:00:17]} ({Predecessor:} 14. Rfd1 Bd5 15. Re1 b6 16. g4 Nh4 17. Nf6+ gxf6 18. Nxh4 Kd7 19. Nf5 fxe5 20. c4 Bxc4 21. Nxe7 exf4 {1-0 (30) Borst,J (2005)-Saint Amour,P (1998) IECG email 2001}) 14... Nh4 {[%emt 0:00:04]} 15. Nxh4 {[%emt 0:00:02]} Bxh4 {[%emt 0:00:01]} 16. Bg5 {[%emt 0:01:04]} Bd5 {[%emt 0:00:03]} ({Black should try} 16... Bxg5 $11 17. Nxg5 Bd5) 17. Bxh4 {[%emt 0:00:04] [#] Hoping for Ng3.} (17. Nf6+ $5 gxf6 18. Bxh4 $11) 17... Bxe4 {[%emt 0:00:01]} 18. Kh2 {[%emt 0:00:16]} h5 {[%emt 0:00:11]} 19. Kg3 {[%emt 0:00:01]} Bd5 {[%emt 0:00:09]} 20. f4 {[%emt 0:00:18]} (20. a4 $5 {[%cal Rf1d1]}) 20... a4 {[%emt 0:00:25]} 21. f5 {[%emt 0:00:10]} hxg4 {[%emt 0:00:09]} 22. hxg4 {[%emt 0:00:02]} Kd7 {[%emt 0:00:01]} 23. Rad1 {[%emt 0:00:30]} b5 {[%emt 0:00:03]} 24. Rfe1 {[%emt 0:00:11]} Rae8 {[%emt 0:00:10] Prevents e6+.} 25. b3 {[%emt 0:00:35]} axb3 {[%emt 0:00:03]} 26. axb3 {[%emt 0:00:01]} Kc8 {[%emt 0:00:02]} 27. c4 {[%emt 0:00:27]} bxc4 {[%emt 0:00:01]} 28. bxc4 {[%emt 0:00:00]} Bxc4 {[%emt 0:00:01]} 29. Bg5 {[%emt 0:00:01]} Bd5 {[%emt 0:00:14]} 30. Rd2 {[%emt 0:00:12]} Rh7 {[%emt 0:00:38]} 31. Rh2 {[%emt 0:00:03]} Rxh2 {[%emt 0:00:03]} 32. Kxh2 $11 {[%emt 0:00:01][%mdl 4096] Endgame KRB-KRB} c5 {[%emt 0:00:17]} 33. Kg3 {[%emt 0:00:01]} c4 {[%emt 0:00:02]} 34. Bd2 {[%emt 0:00:01]} Kd7 {[%emt 0:00:23]} 35. Bc3 {[%emt 0:00:01]} Rb8 {[%emt 0:00:49]} 36. Kf4 {[%emt 0:00:15]} Rb3 {[%emt 0:00:21]} 37. Rc1 {[%emt 0:00:01]} Kc6 {[%emt 0:00:19]} 38. g5 $1 {[%emt 0:00:30]} Ra3 {[%emt 0:00:13]} 39. e6 {[%emt 0:00:01]} fxe6 {[%emt 0:00:05]} 40. f6 {[%emt 0:00:01]} gxf6 {[%emt 0:00:05]} 41. gxf6 {[%emt 0:00:01]} Ra2 {[%emt 0:00:18]} 42. Rf1 {[%emt 0:00:19] Prevents Rf2+.} e5+ {[%emt 0:00:12]} 43. Bxe5 {[%emt 0:00:04]} Re2 {[%emt 0:00:23]} 44. Ba1 {[%emt 0:00:06]} Kc5 {[%emt 0:00:06]} 45. Kg5 {[%emt 0:00:06]} Rg2+ {[%emt 0:00:04]} 46. Kh6 {[%emt 0:00:05]} Bf7 {[%emt 0:00:07]} 47. Re1 {[%emt 0:00:01]} c6 {[%emt 0:00:06]} 48. Re7 {[%emt 0:00:02]} Bd5 {[%emt 0:00:02]} 49. Be5 {[%emt 0:00:04] Inhibits Rg3.} Rf2 {[%emt 0:00:04] White must now prevent ...Rf3.} 50. Kg7 {[%emt 0:00:03]} Rf3 {[%emt 0:00:02] Threatens to win with ...c3.} 51. Ra7 $2 {[%emt 0:00:04] [#]} (51. f7 $11 {and White has nothing to worry.} Rxf7+ 52. Rxf7 Bxf7 53. Kxf7) 51... Kb4 $2 {[%emt 0:00:02]} (51... c3 $19 {...c2 is the strong threat.} 52. f7 c2) 52. Rb7+ {[%emt 0:00:02] The position is equal.} Ka4 {[%emt 0:00:01]} 53. Ra7+ {[%emt 0:00:05]} Kb3 {[%emt 0:00:02] And now ...c3 would win.} 54. Rb7+ {[%emt 0:00:02]} Kc2 {[%emt 0:00:02]} 55. f7 {[%emt 0:00:05]} Bxf7 {[%emt 0:00:02]} 56. Rxf7 {[%emt 0:00:01]} Rxf7+ {[%emt 0:00:03]} 57. Kxf7 {[%emt 0:00:01] KB-KPP} c3 {[%emt 0:00:01]} 58. Ke6 {[%emt 0:00:01]} Kd3 {[%emt 0:00:02]} 59. Kd6 {[%emt 0:00:01]} c2 {[%emt 0:00:02]} 60. Bb2 {[%emt 0:00:01]} Kd2 {[%emt 0:00:01]} 61. Kxc6 {[%emt 0:00:01]} c1=Q+ {[%emt 0:00:02]} 62. Bxc1+ {[%emt 0:00:01]} Kxc1 {[%emt 0:00:01] Weighted Error Value: White=0.09 (flawless) /Black=0.10 (very precise)} 1/2-1/2